fUST/lending_fUST_20250612
["ID","MTS","AMOUNT","RATE_DAILY","PERIOD"]
[365506018,1749719917102,500.0,0.00017999,2]
[365506019,1749719917132,500.0,0.00017999,2]
[365506020,1749719917162,500.0,0.00017999,2]
[365506021,1749719917191,350.0,0.00017999,2]
[365506022,1749719917224,500.0,0.00017999,2]
[365506023,1749719917256,500.0,0.00017999,2]
[365506024,1749719917291,500.0,0.00017999,2]
[365506025,1749719917322,500.0,0.00017999,2]
[365506026,1749719917353,500.0,0.00017999,2]
[365506027,1749719917387,500.0,0.00017999,2]
[365506028,1749719917418,500.0,0.00017999,2]
[365506029,1749719917449,500.0,0.00017999,2]
[365506030,1749719917479,507.58051613,0.00017999,2]
[365506031,1749719917514,500.0,0.00017999,2]
[365506032,1749719928568,500.0,0.00017999,2]
[365506033,1749719928600,500.0,0.00017999,2]
[365506034,1749719928631,500.0,0.00017999,2]
[365506035,1749719928662,500.0,0.00017999,2]
[365506036,1749719928692,500.0,0.00017999,2]
[365506037,1749719928723,500.0,0.00017999,2]
[365506038,1749719928756,500.0,0.00017999,2]
[365506039,1749719928786,500.0,0.00017999,2]
[365506040,1749719928818,500.0,0.00017999,2]
[365506041,1749719928851,500.0,0.00017999,2]
[365506042,1749719928882,500.0,0.00017999,2]
[365506043,1749719928913,500.0,0.00017999,2]
[365506044,1749719928945,500.0,0.00017999,2]
[365506045,1749719928977,500.0,0.00017999,2]
[365506046,1749719929009,500.0,0.00017999,2]
[365506047,1749719929040,500.0,0.00017999,2]
[365506048,1749719929072,500.0,0.00017999,2]
[365506049,1749719929104,500.0,0.00017999,2]
[365506050,1749719929135,500.0,0.00017999,2]
[365506051,1749719929167,500.0,0.00017999,2]
[365506052,1749719929203,500.0,0.00017999,2]
[365506053,1749719929235,500.0,0.00017999,2]
[365506054,1749719929270,500.0,0.00017999,2]
[365506055,1749719929305,500.0,0.00017999,2]
[365506056,1749719929338,500.0,0.00017999,2]
[365506057,1749719929372,300.0,0.00017999,2]
[365506058,1749719929407,500.0,0.00017999,2]
[365506059,1749719929467,500.0,0.00017999,2]
[365506060,1749719929497,500.0,0.00017999,2]
[365506061,1749719929624,500.0,0.00017999,2]
[365506062,1749719929656,500.0,0.00017999,2]
[365506063,1749719929686,500.0,0.00017999,2]
[365506064,1749719929716,500.0,0.00017999,2]
[365506065,1749719929745,500.0,0.00017999,2]
[365506066,1749719929776,500.0,0.00017999,2]
[365506067,1749719929806,500.0,0.00017999,2]
[365506068,1749719929841,500.0,0.00017999,2]
[365506069,1749719929946,183.09111829,0.00017999,2]
[365506070,1749719929976,500.0,0.00017999,2]
[365506071,1749719930013,500.0,0.00017999,2]
[365506072,1749719930042,500.0,0.00017999,2]
[365506073,1749719930072,500.0,0.00017999,2]
[365506074,1749719930105,500.0,0.00017999,2]
[365506075,1749719930136,500.0,0.00017999,2]
[365506076,1749719930165,500.0,0.00017999,2]
[365506077,1749719930194,500.0,0.00017999,2]
[365506078,1749719930224,500.0,0.00017999,2]
[365506079,1749719930254,500.0,0.00017999,2]
[365506080,1749719930287,500.0,0.00017999,2]
[365506081,1749719930317,500.0,0.00017999,2]
[365506082,1749719930349,500.0,0.00017999,2]
[365506083,1749719939110,500.0,0.00017999,2]
[365506084,1749719939432,500.0,0.00017999,2]
[365506085,1749719939744,500.0,0.00017999,2]
[365506086,1749719940174,500.0,0.00017999,2]
[365506087,1749719940624,500.0,0.00017999,2]
[365506088,1749719940972,500.0,0.00017999,2]
[365506089,1749719941283,500.0,0.00017999,2]
[365506090,1749719941654,500.0,0.00017999,2]
[365506091,1749719941988,500.0,0.00017999,2]
[365506092,1749719942722,500.0,0.00017999,2]
[365506093,1749719942833,500.0,0.00017999,2]
[365506094,1749719943158,500.0,0.00017999,2]
[365506095,1749719943479,500.0,0.00017999,2]
[365506096,1749719943835,308.37,0.0001799,3]
[365506097,1749719944347,500.0,0.00017999,2]
[365506098,1749719944727,500.0,0.00017999,2]
[365506099,1749719944757,500.0,0.00017999,2]
[365506100,1749719944798,500.0,0.00017999,2]
[365506101,1749719944829,500.0,0.00017999,2]
[365506102,1749719944907,500.0,0.00017999,2]
[365506103,1749719944964,500.0,0.00017999,2]
[365506104,1749719945033,500.0,0.00017999,2]
[365506105,1749719945099,500.0,0.00017999,2]
[365506106,1749719945136,500.0,0.00017999,2]
[365506107,1749719946132,500.0,0.00017999,2]
[365506108,1749719946433,500.0,0.00017999,2]
[365506109,1749719946464,500.0,0.00017999,2]
[365506110,1749719946493,500.0,0.00017999,2]
[365506111,1749719946523,500.0,0.00017999,2]
[365506112,1749719946571,500.0,0.00017999,2]
[365506113,1749719946602,500.0,0.00017999,2]
[365506114,1749719946649,500.0,0.00017999,2]
[365506115,1749719955152,2576.33257552,0.000179,2]
[365506116,1749719971092,200.0,0.00024165,120]
[365506117,1749719974749,465.44,0.0001799,3]
[365506118,1749719995919,157.62413282,0.000179,2]
[365506119,1749720002324,300.0,0.00017999,2]
[365506120,1749720002772,300.0,0.00017999,2]
[365506121,1749720003425,300.0,0.00017999,2]
[365506122,1749720006226,1200.0,0.00017999,2]
[365506123,1749720036688,268.93316003,0.00017999,2]
[365506124,1749720052180,300.0,0.00017999,2]
[365506125,1749720055631,500.0,0.00017999,2]
[365506126,1749720055665,500.0,0.00017999,2]
[365506127,1749720055695,500.0,0.00017999,2]
[365506128,1749720055726,500.0,0.00017999,2]
[365506129,1749720055760,500.0,0.00017999,2]
[365506130,1749720055790,500.0,0.00017999,2]
[365506131,1749720055820,500.0,0.00017999,2]
[365506132,1749720055859,500.0,0.00017999,2]
[365506133,1749720055893,500.0,0.00017999,2]
[365506134,1749720055929,389.20398441,0.00017999,2]
[365506135,1749720055961,500.0,0.00017999,2]
[365506136,1749720055997,500.0,0.00017999,2]
[365506137,1749720056029,500.0,0.00017999,2]
[365506138,1749720056062,500.0,0.00017999,2]
[365506139,1749720056092,500.0,0.00017999,2]
[365506140,1749720056122,500.0,0.00017999,2]
[365506141,1749720056158,500.0,0.00017999,2]
[365506142,1749720056188,500.0,0.00017999,2]
[365506143,1749720062268,300.0,0.00017999,2]
[365506144,1749720086756,453.4143122,0.0001746,2]
[365506145,1749720091427,200.0,0.00023656,120]
[365506146,1749720104983,348.54486234,0.0001799,2]
[365506147,1749720113054,4363.87656631,0.00016,2]
[365506148,1749720116717,284.0719802,0.00017718,2]
[365506149,1749720122940,300.0,0.00017999,2]
[365506152,1749720151930,200.0,0.00023472,120]
[365506153,1749720173207,232.92097101,0.000179,2]
[365506154,1749720174980,-21845.63,0.00018,3]
[365506155,1749720175119,-21845.63,0.00018,3]
[365506156,1749720175261,-21845.63,0.00018,3]
[365506157,1749720175489,-21845.63,0.00018,3]
[365506158,1749720175627,-21845.63,0.00018,3]
[365506159,1749720175788,-21845.63,0.00018,3]
[365506160,1749720175952,-16030.60668897,0.00018,3]
[365506161,1749720175974,-333.0,0.00018,2]
[365506162,1749720176000,-844.79171733,0.00018,3]
[365506163,1749720176021,-163.26,0.00018,2]
[365506164,1749720176042,-4473.9715937,0.00018,3]
[365506165,1749720176096,-7388.40440277,0.00018,3]
[365506166,1749720176118,-218.06939753,0.0001815,2]
[365506167,1749720176139,-160.0,0.00018584,2]
[365506168,1749720176161,-14079.1561997,0.00018605,2]
[365506169,1749720176226,-10820.8438003,0.00018605,2]
[365506170,1749720176250,-151.0,0.000187,2]
[365506171,1749720176272,-332.412566,0.00018846,2]
[365506172,1749720176295,-10541.3736337,0.00018846,2]
[365506174,1749720233120,160.0,0.00017999,2]
[365506175,1749720251249,-300.0,0.00018845,2]
[365506176,1749720251396,-387.89754135,0.00018846,2]
[365506177,1749720251421,-232.92097098,0.00018894,2]
[365506178,1749720251444,-1103.21733626,0.000189,2]
[365506179,1749720251468,-3836.95374959,0.00019,2]
[365506180,1749720312147,295.26106481,0.00018889,2]
[365506184,1749720330592,8044.50489257,0.00018889,2]
[365506185,1749720330616,7955.49510743,0.00018889,2]
[365506187,1749720333145,5958.4634086,0.00018889,2]
[365506188,1749720358777,286.79703953,0.00018452,2]
[365506189,1749720358798,292.68298147,0.00018452,2]
[365506191,1749720388014,272.04858732,0.000185,2]
[365506193,1749720391543,200.0,0.00022984,120]
[365506196,1749720398456,2000.0,0.00018452,120]
[365506198,1749720402329,264.610677,0.00013699,2]
[365506199,1749720416653,11810.9668084,0.00018452,2]
[365506201,1749720431523,1560.44650137,0.00017811,2]
[365506202,1749720431548,1138.74777643,0.00017811,2]
[365506204,1749720463823,168.83905252,0.00024957,120]
[365506205,1749720469264,2576.12730485,0.00024957,120]
[365506206,1749720469907,285.91174813,0.000246,120]
[365506208,1749720482246,200.0,0.00024957,120]
[365506209,1749720482833,2417.07926322,0.00024957,60]
[365506214,1749720493524,268.69819254,0.00024957,120]
[365506215,1749720502558,913.34675562,0.00024957,120]
[365506216,1749720505634,553.83190821,0.00024957,120]
[365506217,1749720510919,842.44251968,0.00024957,120]
[365506218,1749720511893,686.39511379,0.00024957,120]
[365506219,1749720513111,2770.83178032,0.00024957,60]
[365506220,1749720513154,240.82074905,0.00024957,120]
[365506223,1749720514279,1057.95465024,0.0002,120]
[365506224,1749720514445,241.46918459,0.00024957,120]
[365506225,1749720515074,2286.00146687,0.00024957,120]
[365506226,1749720515597,1000.62364918,0.00024957,120]
[365506227,1749720515885,2000.0,0.00024957,120]
[365506228,1749720516027,3049.06472543,0.00024957,120]
[365506229,1749720516729,1097.55290024,0.00024957,120]
[365506230,1749720517270,13062.00777913,0.00018,2]
[365506231,1749720517293,14200.75555556,0.00018,2]
[365506232,1749720517315,8905.44023585,0.00018,2]
[365506233,1749720517348,371.26138746,0.00024108,120]
[365506234,1749720518255,2593.89071358,0.00024957,120]
[365506235,1749720518600,1792.74507995,0.00024,120]
[365506236,1749720518669,1026.41137846,0.00024957,60]
[365506237,1749720518708,5295.31531971,0.00018,2]
[365506238,1749720518731,9603.31012425,0.00018,2]
[365506239,1749720518791,2534.33198962,0.00024957,120]
[365506240,1749720519323,1081.63428029,0.00024957,120]
[365506241,1749720519638,3867.30236887,0.00024957,60]
[365506242,1749720519735,1004.70253241,0.00024957,120]
[365506243,1749720520145,1429.16294498,0.00024957,120]
[365506244,1749720520216,463.07542205,0.00024957,120]
[365506245,1749720520250,674.31811729,0.00024957,120]
[365506246,1749720520487,2824.86707971,0.00024957,120]
[365506247,1749720520783,1558.93650933,0.00024957,120]
[365506248,1749720521249,302.79770673,0.00024957,120]
[365506249,1749720521282,4597.44543131,0.00018,2]
[365506250,1749720521305,14200.75555556,0.00018,2]
[365506251,1749720521327,221.41893248,0.00018,2]
[365506252,1749720521463,425.37447707,0.00024957,120]
[365506253,1749720521494,1423.55961656,0.00024957,120]
[365506254,1749720521539,569.41076077,0.00024957,120]
[365506255,1749720521572,215.30821136,0.00024957,120]
[365506258,1749720522325,1973.79576441,0.00024957,120]
[365506259,1749720522472,302.0000006,0.0002,120]
[365506261,1749720522912,316.09082315,0.00024957,120]
[365506262,1749720522949,173.33160046,0.00024957,120]
[365506263,1749720523009,203.18929317,0.00024957,120]
[365506264,1749720523432,376.46209594,0.00024,120]
[365506265,1749720524241,647.49058508,0.00024957,120]
[365506266,1749720524313,1280.17980509,0.00024957,120]
[365506267,1749720524562,218.05162258,0.0001536,120]
[365506268,1749720525193,192.62432175,0.00024957,120]
[365506269,1749720525225,532.67376221,0.00024957,120]
[365506272,1749720526234,218.77608273,0.00024957,120]
[365506273,1749720526525,206.87129354,0.00024957,120]
[365506274,1749720527065,2550.88044167,0.00024957,120]
[365506275,1749720527117,2973.13034066,0.00024957,120]
[365506276,1749720527256,2533.98816794,0.00024957,120]
[365506278,1749720527289,500.2551584,0.0002465,120]
[365506279,1749720527322,228.50501096,0.00024,120]
[365506285,1749720557785,13979.33662308,0.00018418,2]
[365506287,1749720570808,200.0,0.00023416,120]
[365506291,1749720630916,200.0,0.00023657,120]
[365506316,1749720632462,-286.30369622,0.00018417,2]
[365506317,1749720632475,-13.69630378,0.00018417,2]
[365506318,1749720632485,-240.0,0.00018417,2]
[365506319,1749720632495,-240.0,0.00018417,2]
[365506320,1749720632510,-1200.0,0.00018417,2]
[365506321,1749720632519,-3260.83816542,0.00018418,2]
[365506322,1749720632531,-7659.8252115,0.00018418,2]
[365506323,1749720632542,-290.92315601,0.00019,2]
[365506324,1749720632552,-6855.47377683,0.00019,2]
[365506325,1749720632562,-16000.0,0.00019,2]
[365506326,1749720632572,-179.532932,0.00019084,2]
[365506327,1749720632582,-176.681076,0.00019178,2]
[365506328,1749720632593,-160.0,0.00019369,2]
[365506329,1749720632603,-174.69072827,0.00019407,2]
[365506330,1749720632612,-300.0,0.00019436,2]
[365506331,1749720632622,-276.96398771,0.00019506,2]
[365506332,1749720632632,-232.87481216,0.00019506,2]
[365506333,1749720632642,-500.0,0.00019506,2]
[365506334,1749720632651,-369.13888918,0.00019506,2]
[365506335,1749720632661,-500.0,0.00019506,2]
[365506336,1749720632671,-500.0,0.00019506,2]
[365506337,1749720632680,-500.0,0.00019506,2]
[365506338,1749720632690,-500.0,0.00019506,2]
[365506339,1749720632699,-500.0,0.00019506,2]
[365506340,1749720632709,-3183.32947507,0.00019507,2]
[365506341,1749720632718,-32490.044823,0.00019507,2]
[365506342,1749720632730,-1213.71321667,0.00019507,2]
[365506350,1749720638310,-290.92315601,0.00019507,2]
[365506351,1749720638320,-254.96864885,0.00019548,2]
[365506352,1749720638331,-15745.03135115,0.00019548,2]
[365506353,1749720638341,-182.360706,0.00019825,2]
[365506354,1749720638350,-1050.9797511,0.000199,2]
[365506355,1749720638360,-5000.0,0.00019938,2]
[365506356,1749720638369,-151.0,0.0002,2]
[365506357,1749720638378,-13993.35966898,0.0002,2]
[365506358,1749720638417,-5541.02739527,0.0002,2]
[365506359,1749720638426,-300.0,0.0002,2]
[365506360,1749720638435,-1050.97975101,0.00020072,2]
[365506362,1749720638446,-1000.0,0.00020087,2]
[365506364,1749720638456,-420.0,0.00020087,2]
[365506366,1749720638465,-16000.0,0.00020096,2]
[365506367,1749720638475,-1000.0,0.00020099,2]
[365506368,1749720638485,-447.48619408,0.00020127,2]
[365506369,1749720638494,-174.69072823,0.00020178,2]
[365506370,1749720638507,-162.0,0.00020185,2]
[365506371,1749720638517,-264.610677,0.00020187,2]
[365506372,1749720638527,-1050.97975101,0.00020245,2]
[365506373,1749720638538,-246.186953,0.00020316,2]
[365506374,1749720638548,-1050.97975101,0.00020417,3]
[365506375,1749720638558,-155.438,0.00020465,2]
[365506376,1749720638567,-500.0,0.00020547,2]
[365506377,1749720638576,-1050.97975101,0.0002059,3]
[365506378,1749720638587,-384.16095492,0.00020599,2]
[365506379,1749720638597,-929.7,0.000206,2]
[365506380,1749720638606,-4722.5,0.000206,2]
[365506381,1749720638616,-160.0,0.00020739,2]
[365506382,1749720638626,-1050.97975101,0.00020762,3]
[365506383,1749720638635,-292.02438605,0.00020838,2]
[365506384,1749720638644,-1000.0,0.00020931,2]
[365506385,1749720638653,-1050.97975101,0.00020934,4]
[365506386,1749720638663,-174.69072823,0.00020948,2]
[365506387,1749720638672,-160.0,0.00020952,3]
[365506388,1749720638681,-3112.14581448,0.00020994,2]
[365506389,1749720638691,-287.24603815,0.00021,2]
[365506390,1749720638700,-288.39,0.0002107,2]
[365506391,1749720638709,-500.0,0.00021073,2]
[365506392,1749720638721,-501.81008832,0.00021073,2]
[365506393,1749720638730,-500.0,0.00021073,2]
[365506394,1749720638740,-500.0,0.00021073,2]
[365506395,1749720638750,-501.53909207,0.00021073,2]
[365506396,1749720638759,-500.0,0.00021073,2]
[365506397,1749720638769,-500.0,0.00021073,2]
[365506398,1749720638778,-259.23680199,0.00021081,2]
[365506399,1749720638788,-11862.37599647,0.00021086,2]
[365506400,1749720638797,-160.0,0.00021086,2]
[365506401,1749720638806,-844.79171733,0.00021086,2]
[365506402,1749720638816,-213.559,0.00021094,2]
[365506403,1749720638825,-500.0,0.00021094,2]
[365506404,1749720638834,-500.0,0.00021094,2]
[365506405,1749720638843,-500.0,0.00021094,2]
[365506406,1749720638853,-500.0,0.00021094,2]
[365506407,1749720638862,-500.0,0.00021094,2]
[365506408,1749720638871,-485.33767997,0.00021094,2]
[365506409,1749720638881,-500.0,0.00021094,2]
[365506410,1749720638890,-500.0,0.00021094,2]
[365506411,1749720638899,-500.0,0.00021094,2]
[365506412,1749720638909,-500.0,0.00021094,2]
[365506413,1749720638918,-500.0,0.00021094,2]
[365506414,1749720638927,-500.0,0.00021094,2]
[365506415,1749720638936,-500.0,0.00021094,2]
[365506416,1749720638947,-172.84429769,0.00021094,2]
[365506417,1749720638956,-500.0,0.00021094,2]
[365506418,1749720638966,-600.0,0.00021094,2]
[365506419,1749720638975,-460.0,0.00021095,4]
[365506420,1749720638985,-419.10224278,0.00021095,4]
[365506422,1749720638994,-460.0,0.00021095,4]
[365506423,1749720639003,-500.0,0.00021095,3]
[365506424,1749720639013,-460.0,0.00021095,4]
[365506425,1749720639022,-460.0,0.00021095,4]
[365506426,1749720639031,-460.0,0.00021095,4]
[365506428,1749720639040,-460.0,0.00021095,4]
[365506430,1749720639051,-420.0,0.00021095,4]
[365506431,1749720639060,-460.0,0.00021095,4]
[365506432,1749720639070,-460.0,0.00021095,4]
[365506433,1749720639079,-460.0,0.00021095,2]
[365506434,1749720639087,-378.60964633,0.00021095,4]
[365506436,1749720639097,-551.51486946,0.00021095,4]
[365506437,1749720639106,-428.68822432,0.00021095,4]
[365506438,1749720639114,-460.0,0.00021095,4]
[365506439,1749720639123,-460.0,0.00021095,4]
[365506440,1749720639132,-460.0,0.00021095,4]
[365506441,1749720639141,-343.19824319,0.00021095,4]
[365506442,1749720639150,-460.0,0.00021095,4]
[365506443,1749720639160,-162.35156786,0.00021095,4]
[365506444,1749720639169,-428.37290027,0.00021095,4]
[365506445,1749720639178,-460.0,0.00021095,4]
[365506446,1749720639188,-460.0,0.00021095,4]
[365506447,1749720639198,-460.0,0.00021095,4]
[365506448,1749720639338,-460.0,0.00021095,4]
[365506449,1749720639349,-407.05904662,0.00021095,4]
[365506450,1749720639360,-460.0,0.00021095,4]
[365506451,1749720639370,-337.66965558,0.00021095,4]
[365506452,1749720639380,-610.4267169,0.00021095,4]
[365506453,1749720639390,-461.74174392,0.00021095,4]
[365506454,1749720639399,-460.0,0.00021095,4]
[365506455,1749720639408,-460.0,0.00021095,4]
[365506456,1749720639418,-460.0,0.00021095,4]
[365506457,1749720639427,-460.0,0.00021095,4]
[365506458,1749720639437,-467.43761465,0.00021095,4]
[365506459,1749720639450,-460.0,0.00021095,4]
[365506460,1749720639459,-401.90569862,0.00021095,4]
[365506461,1749720639468,-460.0,0.00021095,4]
[365506462,1749720639478,-302.85986376,0.00021095,4]
[365506463,1749720639486,-411.6369234,0.00021095,4]
[365506464,1749720639496,-401.02681555,0.00021095,4]
[365506465,1749720639512,-443.11603328,0.00021095,4]
[365506466,1749720639521,-463.93002004,0.00021095,4]
[365506467,1749720639531,-471.63211033,0.00021095,4]
[365506468,1749720639540,-460.0,0.00021095,4]
[365506469,1749720639549,-460.0,0.00021095,4]
[365506470,1749720639558,-403.85307655,0.00021095,4]
[365506471,1749720639568,-460.0,0.00021095,4]
[365506472,1749720639578,-460.0,0.00021095,4]
[365506473,1749720639588,-460.0,0.00021095,4]
[365506474,1749720639597,-460.0,0.00021095,4]
[365506475,1749720639607,-431.21161297,0.00021095,4]
[365506476,1749720639617,-460.0,0.00021095,4]
[365506477,1749720639627,-464.01029245,0.00021095,4]
[365506478,1749720639638,-460.0,0.00021095,4]
[365506479,1749720639647,-460.0,0.00021095,4]
[365506480,1749720639657,-465.45041051,0.00021095,4]
[365506481,1749720639666,-460.0,0.00021095,4]
[365506482,1749720639675,-460.0,0.00021095,4]
[365506483,1749720639685,-460.0,0.00021095,4]
[365506484,1749720639698,-460.0,0.00021095,4]
[365506485,1749720639707,-460.0,0.00021095,4]
[365506486,1749720639717,-460.0,0.00021095,4]
[365506487,1749720639727,-392.79213181,0.00021095,4]
[365506488,1749720639736,-460.0,0.00021095,4]
[365506489,1749720639745,-446.30284976,0.00021095,4]
[365506490,1749720639754,-460.0,0.00021095,4]
[365506491,1749720639764,-460.0,0.00021095,4]
[365506492,1749720639774,-460.0,0.00021095,4]
[365506493,1749720639783,-460.0,0.00021095,4]
[365506494,1749720639793,-460.0,0.00021095,4]
[365506495,1749720639803,-387.40667591,0.00021095,4]
[365506496,1749720639813,-440.0,0.00021095,4]
[365506497,1749720639822,-460.0,0.00021095,4]
[365506498,1749720639832,-460.0,0.00021095,4]
[365506499,1749720639841,-465.36188089,0.00021095,4]
[365506500,1749720639851,-460.0,0.00021095,4]
[365506501,1749720639860,-412.62392993,0.00021095,4]
[365506502,1749720639870,-570.99863023,0.00021095,4]
[365506503,1749720639879,-505.98066408,0.00021095,4]
[365506504,1749720639888,-394.07820387,0.00021095,4]
[365506505,1749720639898,-553.94190929,0.00021095,4]
[365506506,1749720639907,-462.98390913,0.00021095,4]
[365506507,1749720639918,-460.0,0.00021095,4]
[365506508,1749720639927,-440.0,0.00021095,4]
[365506509,1749720639936,-460.0,0.00021095,4]
[365506510,1749720639947,-460.0,0.00021095,4]
[365506511,1749720639957,-460.0,0.00021095,4]
[365506513,1749720639967,-460.0,0.00021095,4]
[365506514,1749720639976,-509.06473254,0.00021095,4]
[365506515,1749720639985,-460.0,0.00021095,4]
[365506516,1749720639994,-460.0,0.00021095,4]
[365506517,1749720640003,-413.90703755,0.00021095,4]
[365506518,1749720640012,-460.0,0.00021095,4]
[365506519,1749720640022,-460.0,0.00021095,4]
[365506520,1749720640031,-460.0,0.00021095,4]
[365506521,1749720640040,-423.94171376,0.00021095,4]
[365506522,1749720640050,-460.0,0.00021095,4]
[365506523,1749720640059,-460.0,0.00021095,4]
[365506524,1749720640069,-467.74573919,0.00021095,4]
[365506525,1749720640079,-460.0,0.00021095,4]
[365506526,1749720640089,-460.0,0.00021095,4]
[365506527,1749720640099,-460.0,0.00021095,4]
[365506528,1749720640109,-500.17065053,0.00021095,4]
[365506529,1749720640120,-465.72304241,0.00021095,4]
[365506530,1749720640130,-460.0,0.00021095,4]
[365506531,1749720640140,-460.0,0.00021095,4]
[365506533,1749720640149,-220.15873012,0.00021095,4]
[365506534,1749720640159,-460.89164337,0.00021095,4]
[365506536,1749720640168,-460.0,0.00021095,4]
[365506538,1749720640177,-460.0,0.00021095,4]
[365506540,1749720640187,-460.0,0.00021095,4]
[365506542,1749720640198,-280.0,0.00021095,4]
[365506545,1749720640208,-460.0,0.00021095,4]
[365506546,1749720640217,-460.0,0.00021095,4]
[365506549,1749720640227,-460.0,0.00021095,4]
[365506550,1749720640236,-410.0,0.00021095,4]
[365506552,1749720640246,-460.0,0.00021095,4]
[365506555,1749720640256,-460.0,0.00021095,4]
[365506557,1749720640266,-828.54,0.00021095,4]
[365506559,1749720640275,-540.66481077,0.00021095,4]
[365506560,1749720640286,-413.55422818,0.00021095,4]
[365506562,1749720640295,-460.0,0.00021095,4]
[365506565,1749720640305,-420.0,0.00021095,4]
[365506566,1749720640314,-609.00130533,0.00021095,4]
[365506568,1749720640323,-468.13320924,0.00021095,4]
[365506570,1749720640332,-390.74820441,0.00021095,4]
[365506572,1749720640342,-915.7,0.00021095,4]
[365506574,1749720640351,-460.0,0.00021095,4]
[365506576,1749720640361,-460.0,0.00021095,4]
[365506578,1749720640370,-196.6991503,0.00021095,4]
[365506580,1749720640379,-460.0,0.00021095,4]
[365506582,1749720640390,-460.0,0.00021095,4]
[365506584,1749720640399,-596.82,0.00021095,4]
[365506586,1749720640408,-461.92082937,0.00021095,4]
[365506588,1749720640418,-519.63,0.00021095,4]
[365506590,1749720640427,-460.0,0.00021095,4]
[365506592,1749720640437,-462.35027354,0.00021095,4]
[365506594,1749720640448,-460.0,0.00021095,4]
[365506596,1749720640457,-460.0,0.00021095,4]
[365506598,1749720640466,-460.0,0.00021095,4]
[365506600,1749720640476,-460.0,0.00021095,4]
[365506602,1749720640485,-460.0,0.00021095,4]
[365506604,1749720640495,-460.0,0.00021095,4]
[365506606,1749720640507,-460.0,0.00021095,4]
[365506608,1749720640516,-460.0,0.00021095,4]
[365506610,1749720640526,-460.0,0.00021095,4]
[365506612,1749720640535,-460.0,0.00021095,4]
[365506614,1749720640545,-461.95810043,0.00021095,4]
[365506615,1749720640555,-460.0,0.00021095,4]
[365506616,1749720640564,-460.0,0.00021095,4]
[365506617,1749720640574,-420.88571535,0.00021095,4]
[365506619,1749720640583,-460.0,0.00021095,4]
[365506620,1749720640594,-460.0,0.00021095,4]
[365506622,1749720640604,-460.0,0.00021095,4]
[365506624,1749720640614,-460.0,0.00021095,4]
[365506626,1749720640623,-400.38104856,0.00021095,4]
[365506628,1749720640633,-465.32101156,0.00021095,4]
[365506630,1749720640642,-460.0,0.00021095,4]
[365506631,1749720640651,-460.0,0.00021095,4]
[365506632,1749720640659,-460.0,0.00021095,4]
[365506633,1749720640668,-460.0,0.00021095,4]
[365506634,1749720640678,-460.0,0.00021095,4]
[365506635,1749720640686,-460.0,0.00021095,4]
[365506636,1749720640697,-440.0,0.00021095,4]
[365506638,1749720640707,-460.0,0.00021095,4]
[365506640,1749720640716,-460.0,0.00021095,4]
[365506642,1749720640725,-427.21930375,0.00021095,4]